lending/lending_fUSD_20241214
["ID","MTS","AMOUNT","RATE_DAILY","PERIOD"]
[345367641,1734196232623,-229.73028775,0.0001961,2]
[345367642,1734196232631,-157.61,0.00019615,2]
[345367643,1734196232640,-9032.16,0.00019624,2]
[345367644,1734196232650,-500.0,0.00019635,2]
[345367645,1734196232660,-300.0,0.00019658,2]
[345367646,1734196232670,-320.0,0.00019681,2]
[345367647,1734196232679,-200.0,0.0001969,2]
[345367648,1734196232689,-250.0,0.00019703,2]
[345367649,1734196232698,-300.0,0.00019718,2]
[345367650,1734196232708,-1291.17,0.0001972,2]
[345367651,1734196232717,-300.0,0.00019747,2]
[345367652,1734196232726,-18696.41,0.00019748,2]
[345367653,1734196232735,-500.0,0.00019807,2]
[345367654,1734196232745,-420.0,0.0001982,2]
[345367655,1734196232755,-3536.46,0.00019859,2]
[345367656,1734196232764,-2485.21,0.0001986,2]
[345367657,1734196232773,-164.687,0.0001986,2]
[345367658,1734196232783,-200.0,0.00019897,2]
[345367659,1734196232792,-322.217,0.0002004,2]
[345367660,1734196232802,-1056.0,0.00020132,2]
[345367661,1734196232811,-258.18,0.00020145,2]
[345367662,1734196232821,-161.01,0.00020155,2]
[345367663,1734196232830,-169.79,0.00020175,2]
[345367664,1734196232840,-242.00828035,0.00020244,4]
[345367665,1734196232850,-975.55,0.00020341,2]
[345367666,1734196232860,-975.55,0.00020341,2]
[345367667,1734196232870,-975.55,0.00020341,2]
[345367668,1734196232880,-320.0,0.00020409,2]
[345367669,1734196232890,-500.0,0.00020409,2]
[345367670,1734196232900,-500.0,0.00020409,2]
[345367671,1734196232909,-500.0,0.00020409,2]
[345367672,1734196232919,-500.0,0.00020409,2]
[345367673,1734196232928,-500.0,0.00020409,2]
[345367674,1734196232937,-500.0,0.00020409,2]
[345367675,1734196232947,-500.0,0.00020409,2]
[345367676,1734196232956,-500.0,0.00020409,2]
[345367677,1734196232965,-500.0,0.00020409,2]
[345367678,1734196232975,-500.0,0.00020409,2]
[345367679,1734196232986,-500.0,0.00020409,2]
[345367680,1734196232997,-500.0,0.00020409,2]
[345367681,1734196233007,-500.0,0.00020409,2]
[345367682,1734196233017,-500.0,0.00020409,2]
[345367683,1734196233028,-500.0,0.00020409,2]
[345367684,1734196233037,-500.0,0.00020409,2]
[345367685,1734196233047,-500.0,0.00020409,2]
[345367686,1734196233058,-500.0,0.00020409,2]
[345367687,1734196233067,-500.0,0.00020409,2]
[345367688,1734196233077,-500.0,0.00020409,2]
[345367689,1734196233088,-500.0,0.00020409,2]
[345367690,1734196233099,-500.0,0.00020409,2]
[345367691,1734196233108,-500.0,0.00020409,2]
[345367692,1734196233118,-500.0,0.00020409,2]
[345367693,1734196233128,-500.0,0.00020409,2]
[345367694,1734196233138,-500.0,0.00020409,2]
[345367695,1734196233148,-500.0,0.00020409,2]
[345367696,1734196233157,-500.0,0.00020409,2]
[345367697,1734196233168,-500.0,0.00020409,2]
[345367698,1734196233178,-500.0,0.00020409,2]
[345367699,1734196233188,-500.0,0.00020409,2]
[345367700,1734196233198,-500.0,0.00020409,2]
[345367701,1734196233207,-500.0,0.00020409,2]
[345367702,1734196233217,-500.0,0.00020409,2]
[345367703,1734196233227,-500.0,0.00020409,2]
[345367704,1734196233236,-500.0,0.00020409,2]
[345367705,1734196233246,-500.0,0.00020409,2]
[345367706,1734196233256,-500.0,0.00020409,2]
[345367707,1734196233265,-500.0,0.00020409,2]
[345367708,1734196233275,-500.0,0.00020409,2]
[345367709,1734196233284,-500.0,0.00020409,2]
[345367710,1734196233294,-500.0,0.00020409,2]
[345367711,1734196233303,-500.0,0.00020409,2]
[345367712,1734196233313,-500.0,0.00020409,2]
[345367713,1734196233322,-500.0,0.00020409,2]
[345367714,1734196233332,-500.0,0.00020409,2]
[345367715,1734196233342,-500.0,0.00020409,2]
[345367716,1734196233351,-500.0,0.00020409,2]
[345367717,1734196233361,-500.0,0.00020409,2]
[345367718,1734196233370,-500.0,0.00020409,2]
[345367719,1734196233380,-500.0,0.00020409,2]
[345367720,1734196233390,-500.0,0.00020409,2]
[345367721,1734196233399,-500.0,0.00020409,2]
[345367722,1734196233409,-500.0,0.00020409,2]
[345367723,1734196233418,-500.0,0.00020409,2]
[345367724,1734196233428,-500.0,0.00020409,2]
[345367725,1734196233438,-500.0,0.00020409,2]
[345367726,1734196233447,-500.0,0.00020409,2]
[345367727,1734196233457,-500.0,0.00020409,2]
[345367728,1734196233467,-500.0,0.00020409,2]
[345367729,1734196233476,-500.0,0.00020409,2]
[345367730,1734196233486,-500.0,0.00020409,2]
[345367731,1734196233495,-500.0,0.00020409,2]
[345367732,1734196233505,-500.0,0.00020409,2]
[345367733,1734196233515,-500.0,0.00020409,2]
[345367734,1734196233524,-500.0,0.00020409,2]
[345367735,1734196233534,-500.0,0.00020409,2]
[345367736,1734196233543,-500.0,0.00020409,2]
[345367737,1734196233553,-500.0,0.00020409,2]
[345367738,1734196233562,-500.0,0.00020409,2]
[345367739,1734196233572,-500.0,0.00020409,2]
[345367740,1734196233581,-500.0,0.00020409,2]
[345367741,1734196233590,-500.0,0.00020409,2]
[345367742,1734196233600,-500.0,0.00020409,2]
[345367743,1734196233609,-500.0,0.00020409,2]
[345367744,1734196233619,-500.0,0.00020409,2]
[345367745,1734196233628,-500.0,0.00020409,2]
[345367746,1734196233638,-500.0,0.00020409,2]
[345367747,1734196233648,-500.0,0.00020409,2]
[345367748,1734196233658,-500.0,0.00020409,2]
[345367749,1734196233667,-500.0,0.00020409,2]
[345367750,1734196233678,-500.0,0.00020409,2]
[345367751,1734196233688,-500.0,0.00020409,2]
[345367752,1734196233698,-500.0,0.00020409,2]
[345367753,1734196233707,-500.0,0.00020409,2]
[345367754,1734196233717,-500.0,0.00020409,2]
[345367755,1734196233727,-500.0,0.00020409,2]
[345367756,1734196233736,-500.0,0.00020409,2]
[345367757,1734196233746,-500.0,0.00020409,2]
[345367758,1734196233755,-500.0,0.00020409,2]
[345367759,1734196233764,-500.0,0.00020409,2]
[345367760,1734196233773,-500.0,0.00020409,2]
[345367761,1734196233783,-500.0,0.00020409,2]
[345367762,1734196233793,-500.0,0.00020409,2]
[345367763,1734196233803,-500.0,0.00020409,2]
[345367764,1734196233812,-500.0,0.00020409,2]
[345367765,1734196233821,-500.0,0.00020409,2]
[345367766,1734196233831,-500.0,0.00020409,2]
[345367767,1734196233841,-500.0,0.00020409,2]
[345367768,1734196233850,-500.0,0.00020409,2]
[345367769,1734196233859,-500.0,0.00020409,2]
[345367770,1734196233869,-500.0,0.00020409,2]
[345367771,1734196233878,-500.0,0.00020409,2]
[345367772,1734196233887,-500.0,0.00020409,2]
[345367773,1734196233896,-229.33905673,0.00020409,2]
[345367774,1734196233914,-270.66094327,0.00020409,2]
[345367775,1734196233924,-500.0,0.00020409,2]
[345367776,1734196233933,-500.0,0.00020409,2]
[345367777,1734196233943,-500.0,0.00020409,2]
[345367778,1734196233952,-500.0,0.00020409,2]
[345367779,1734196233962,-500.0,0.00020409,2]
[345367780,1734196233971,-500.0,0.00020409,2]
[345367781,1734196233983,-500.0,0.00020409,2]
[345367782,1734196233993,-500.0,0.00020409,2]
[345367783,1734196234003,-500.0,0.00020409,2]
[345367784,1734196234012,-500.0,0.00020409,2]
[345367785,1734196234022,-500.0,0.00020409,2]
[345367786,1734196234031,-500.0,0.00020409,2]
[345367787,1734196234041,-500.0,0.00020409,2]
[345367788,1734196234050,-500.0,0.00020409,2]
[345367789,1734196234059,-500.0,0.00020409,2]
[345367790,1734196234068,-500.0,0.00020409,2]
[345367791,1734196234078,-500.0,0.00020409,2]
[345367792,1734196234089,-500.0,0.00020409,2]
[345367793,1734196234098,-500.0,0.00020409,2]
[345367794,1734196234107,-500.0,0.00020409,2]
[345367795,1734196234116,-500.0,0.00020409,2]
[345367796,1734196234125,-500.0,0.00020409,2]
[345367797,1734196234135,-500.0,0.00020409,2]
[345367798,1734196234144,-500.0,0.00020409,2]
[345367799,1734196234154,-500.0,0.00020409,2]
[345367800,1734196234163,-500.0,0.00020409,2]
[345367801,1734196234172,-500.0,0.00020409,2]
[345367802,1734196234181,-500.0,0.00020409,2]
[345367803,1734196234191,-500.0,0.00020409,2]
[345367804,1734196234200,-500.0,0.00020409,2]
[345367805,1734196234210,-500.0,0.00020409,2]
[345367806,1734196234219,-500.0,0.00020409,2]
[345367807,1734196234228,-500.0,0.00020409,2]
[345367808,1734196234237,-500.0,0.00020409,2]
[345367809,1734196234246,-500.0,0.00020409,2]
[345367810,1734196234256,-500.0,0.00020409,2]
[345367811,1734196234265,-500.0,0.00020409,2]
[345367812,1734196234275,-500.0,0.00020409,2]
[345367813,1734196234284,-500.0,0.00020409,2]
[345367814,1734196234294,-500.0,0.00020409,2]
[345367815,1734196234303,-500.0,0.00020409,2]
[345367816,1734196234313,-500.0,0.00020409,2]
[345367817,1734196234322,-500.0,0.00020409,2]
[345367818,1734196234333,-500.0,0.00020409,2]
[345367819,1734196234343,-500.0,0.00020409,2]
[345367820,1734196234352,-500.0,0.00020409,2]
[345367821,1734196234361,-500.0,0.00020409,2]
[345367822,1734196234370,-500.0,0.00020409,2]
[345367823,1734196234381,-500.0,0.00020409,2]
[345367824,1734196234390,-500.0,0.00020409,2]
[345367825,1734196234399,-500.0,0.00020409,2]
[345367826,1734196234408,-500.0,0.00020409,2]
[345367827,1734196234418,-500.0,0.00020409,2]
[345367828,1734196234428,-500.0,0.00020409,2]
[345367829,1734196234437,-500.0,0.00020409,2]
[345367830,1734196234447,-500.0,0.00020409,2]
[345367831,1734196234457,-500.0,0.00020409,2]
[345367832,1734196234468,-500.0,0.00020409,2]
[345367833,1734196234478,-500.0,0.00020409,2]
[345367834,1734196234488,-500.0,0.00020409,2]
[345367835,1734196234498,-500.0,0.00020409,2]
[345367836,1734196234508,-500.0,0.00020409,2]
[345367837,1734196234517,-425.0,0.00020469,2]
[345367838,1734196234526,-150.0,0.000205,2]
[345367839,1734196234535,-150.0,0.00020548,5]
[345367840,1734196234545,-150.0,0.00020748,2]
[345367841,1734196234554,-150.0,0.00020749,2]
[345367842,1734196234563,-150.0,0.00020749,2]
[345367843,1734196234573,-500.0,0.00020749,2]
[345367844,1734196234583,-500.0,0.00020749,2]
[345367845,1734196234593,-500.0,0.00020749,2]
[345367846,1734196234603,-58.82856865,0.00020749,2]
[345367848,1734196238193,-300.0,0.00020408,2]
[345367849,1734196238203,-441.17143135,0.00020749,2]
[345367850,1734196238213,-500.0,0.00020749,2]
[345367851,1734196238223,-500.0,0.00020749,2]
[345367852,1734196238232,-500.0,0.00020749,2]
[345367853,1734196238241,-500.0,0.00020749,2]
[345367854,1734196238250,-500.0,0.00020749,2]
[345367855,1734196238259,-500.0,0.00020749,2]
[345367856,1734196238268,-500.0,0.00020749,2]
[345367857,1734196238278,-500.0,0.00020749,2]
[345367858,1734196238287,-500.0,0.00020749,2]
[345367859,1734196238296,-500.0,0.00020749,2]
[345367860,1734196238305,-500.0,0.00020749,2]
[345367861,1734196238314,-500.0,0.00020749,2]
[345367862,1734196238323,-500.0,0.00020749,2]
[345367863,1734196238332,-500.0,0.00020749,2]
[345367864,1734196238342,-500.0,0.00020749,2]
[345367865,1734196238351,-500.0,0.00020749,2]
[345367866,1734196238360,-150.0,0.00020751,2]
[345367867,1734196238370,-150.0,0.00020767,2]
[345367868,1734196238379,-150.0,0.0002077,2]
[345367869,1734196238388,-150.0,0.00020772,2]
[345367870,1734196238397,-150.0,0.00020774,2]
[345367871,1734196238406,-150.0,0.00020777,2]
[345367872,1734196238416,-6772.7777,0.0002078,2]
[345367873,1734196238425,-711.1825,0.0002078,2]
[345367874,1734196238434,-15279.32377231,0.0002078,2]
[345367875,1734196238446,-6739.1797557,0.0002078,2]
[345367876,1734196238455,-150.0,0.00020782,2]
[345367877,1734196238464,-150.0,0.00020786,2]
[345367878,1734196238474,-150.0,0.00020787,2]
[345367879,1734196238483,-150.0,0.00020789,2]
[345367880,1734196238492,-150.0,0.0002079,2]
[345367881,1734196238501,-150.0,0.00020792,2]
[345367882,1734196238510,-150.0,0.00020799,2]
[345367883,1734196238519,-150.0,0.000208,2]
[345367884,1734196238528,-300.0,0.000208,7]
[345367885,1734196238538,-3630.0,0.00020803,2]
[345367886,1734196238547,-150.0,0.00020805,2]
[345367887,1734196238557,-150.0,0.00020806,2]
[345367888,1734196238566,-150.0,0.00020812,2]
[345367889,1734196238575,-150.0,0.00020813,2]
[345367890,1734196238585,-150.0,0.00020816,2]
[345367891,1734196238594,-150.0,0.00020816,2]
[345367892,1734196238603,-150.0,0.00020816,2]
[345367893,1734196238613,-150.0,0.00020817,2]
[345367894,1734196238623,-150.0,0.00020833,2]
[345367895,1734196238632,-150.0,0.00020839,2]
[345367896,1734196238642,-150.0,0.00020841,2]
[345367897,1734196238652,-150.0,0.00020847,2]
[345367898,1734196238662,-150.0,0.0002085,2]
[345367899,1734196238671,-150.0,0.00020851,2]
[345367900,1734196238681,-150.0,0.00020853,2]
[345367901,1734196238690,-150.0,0.00020853,2]
[345367902,1734196238699,-150.0,0.00020859,2]
[345367903,1734196238709,-150.0,0.0002087,2]
[345367904,1734196238718,-150.0,0.00020873,2]
[345367905,1734196238728,-150.0,0.00020877,2]
[345367906,1734196238738,-150.0,0.00020884,2]
[345367907,1734196238747,-200.0,0.00020889,5]
[345367908,1734196238757,-150.0,0.00020894,2]
[345367909,1734196238766,-1272.5297567,0.00020895,2]
[345367912,1734196238952,-153.96448399,0.00020895,2]
[345367913,1734196238969,-1916.4397893,0.00020895,2]
[345367914,1734196238979,-1396.0959,0.00020895,2]
[345367915,1734196238988,-1482.2214,0.00020895,2]
[345367916,1734196238997,-757.5821,0.00020895,2]
[345367917,1734196239011,-5000.0,0.00020895,2]
[345367918,1734196239020,-150.0,0.00020898,2]
[345367919,1734196239029,-700.0,0.000209,7]
[345367920,1734196239039,-150.0,0.00020901,2]
[345367921,1734196239049,-200.0,0.00020902,5]
[345367922,1734196239059,-150.0,0.00020904,2]
[345367923,1734196239068,-150.0,0.00020906,2]
[345367924,1734196239077,-150.0,0.00020915,2]
[345367925,1734196239089,-150.0,0.00020916,2]
[345367926,1734196239099,-150.0,0.00020924,2]
[345367927,1734196239108,-150.0,0.00020926,2]
[345367928,1734196239118,-7693.3552607,0.00020927,2]
[345367929,1734196239133,-14325.14826724,0.00020927,2]
[345367930,1734196239142,-150.0,0.0002093,2]
[345367931,1734196239151,-150.0,0.00020931,2]
[345367932,1734196239161,-150.0,0.00020933,2]
[345367933,1734196239170,-150.0,0.00020934,2]
[345367934,1734196239179,-150.0,0.00020934,2]
[345367935,1734196239188,-313.47357333,0.00020948,2]
[345367936,1734196239197,-150.0,0.00020964,2]
[345367937,1734196239208,-150.0,0.0002097,2]
[345367938,1734196239217,-150.0,0.0002097,2]
[345367939,1734196239226,-150.0,0.00020971,2]
[345367940,1734196239235,-378.23646012,0.00020973,2]
[345367941,1734196239244,-150.0,0.00020976,2]
[345367942,1734196239253,-150.0,0.00020977,2]
[345367943,1734196239263,-150.0,0.00020979,2]
[345367944,1734196239273,-150.0,0.00020981,2]
[345367945,1734196239282,-150.0,0.00020986,2]
[345367946,1734196239291,-150.0,0.00020991,2]
[345367947,1734196239301,-150.0,0.00020992,2]
[345367948,1734196239311,-150.0,0.00020994,2]
[345367949,1734196239320,-41242.07193563,0.00020995,2]
[345367950,1734196239331,-1524.53301,0.00020995,2]
[345367951,1734196239343,-5619.3077376,0.00020995,2]
[345367952,1734196239354,-10668.135026,0.00020995,2]
[345367953,1734196239365,-15646.9189667,0.00020995,2]
[345367954,1734196239438,-47.75136824,0.00020995,2]
[345367955,1734196239454,-26222.69395583,0.00020995,2]
[345367956,1734196239463,-1500.0,0.00020995,2]
[345367957,1734196239472,-1000.0,0.00020995,2]
[345367958,1734196239481,-24058.24498562,0.00020995,2]
[345367963,1734196240352,-8035.21466691,0.00020995,2]
[345367964,1734196240462,-422.25836631,0.00020995,2]
[345367965,1734196240473,-1302.42204229,0.00020995,2]
[345367966,1734196240485,-722.88000006,0.00020995,2]
[345367967,1734196240519,-2436.00623881,0.00020995,2]
[345367968,1734196240528,-17489.99376119,0.00020995,2]
[345367969,1734196240541,-47235.13353881,0.00020995,2]
[345367970,1734196240550,-270.6771,0.00020995,2]
[345367971,1734196240559,-500.0,0.00020995,2]
[345367972,1734196240568,-150.0,0.00020996,2]
[345367973,1734196240578,-150.0,0.00020998,2]
[345367974,1734196240589,-650.0,0.00021,2]
[345367975,1734196240598,-10000.0,0.00021,2]
[345367976,1734196240608,-2000.0,0.00021,2]
[345367977,1734196240617,-150.0,0.00021007,2]
[345367978,1734196240626,-150.0,0.00021008,2]
[345367979,1734196240635,-2000.0,0.0002101,2]
[345367980,1734196240645,-150.0,0.00021011,2]
[345367981,1734196240654,-150.0,0.00021014,2]
[345367982,1734196240663,-150.0,0.00021015,2]
[345367983,1734196240672,-150.0,0.00021016,2]
[345367984,1734196240681,-150.0,0.00021017,2]
[345367985,1734196240690,-3920.627075,0.0002102,2]
[345367986,1734196240699,-3342.93402996,0.00021029,2]
[345367987,1734196240710,-250.26,0.00021034,2]
[345367988,1734196240720,-225.0,0.00021048,2]
[345367989,1734196240729,-4327.01519863,0.00021073,2]
[345367990,1734196240740,-5401.19504801,0.00021073,2]
[345367991,1734196240751,-778.485,0.00021073,2]
[345367992,1734196240762,-804.84095008,0.00021073,2]
[345367993,1734196240773,-633.58116806,0.00021073,2]
[345367994,1734196240784,-358.4,0.00021073,2]
[345367995,1734196240794,-332.54659203,0.00021073,2]
[345367997,1734196243167,-345.85,0.0001989,2]
[345367998,1734196243177,-345.85,0.00020626,2]
[345367999,1734196243186,-49.95,0.00021073,2]
[345368000,1734196243382,-9332.48957113,0.00021073,2]
[345368001,1734196243392,-53.51042887,0.00021092,2]
[345368002,1734196243524,-3561.3585,0.00021092,2]
[345368003,1734196243580,-13185.04448843,0.00021092,2]
[345368004,1734196243593,-2867.93972285,0.00021092,2]
[345368007,1734196246190,-355.64622195,0.00021092,2]
[345368008,1734196246246,-1349.76020427,0.00021092,2]
[345368009,1734196246258,-2891.92197403,0.00021092,2]
[345368010,1734196246267,-500.0,0.00021095,3]
[345368011,1734196246277,-500.0,0.00021095,3]
[345368012,1734196246287,-501.19017308,0.00021095,3]
[345368013,1734196246295,-390.48785289,0.00021095,2]
[345368014,1734196246366,-1609.51214711,0.00021095,2]
[345368015,1734196246376,-500.0,0.00021095,3]
[345368016,1734196246386,-200.0,0.00021095,2]
[345368017,1734196246398,-500.0,0.00021095,3]
[345368018,1734196246407,-500.0,0.00021095,3]
[345368019,1734196246416,-500.0,0.00021095,3]
[345368020,1734196246425,-500.0,0.00021095,3]
[345368021,1734196246435,-500.0,0.00021095,3]
[345368022,1734196246444,-500.0,0.00021095,3]
[345368023,1734196246454,-500.0,0.00021095,3]
[345368024,1734196246463,-500.0,0.00021095,3]
[345368025,1734196246505,-500.0,0.00021095,3]
[345368026,1734196246514,-307.97203889,0.00021095,3]
[345368027,1734196246527,-192.02796111,0.00021095,3]
[345368028,1734196246537,-500.0,0.00021095,3]
[345368029,1734196246547,-500.0,0.00021095,3]
[345368030,1734196246557,-500.0,0.00021095,3]
[345368031,1734196246566,-276.70362545,0.00021095,3]
[345368032,1734196246576,-584.31,0.00021095,3]
[345368033,1734196246585,-500.0,0.00021095,3]
[345368034,1734196246595,-500.0,0.00021095,3]
[345368035,1734196246605,-500.0,0.00021095,3]
[345368036,1734196246615,-500.0,0.00021095,3]
[345368037,1734196246625,-500.0,0.00021095,3]
[345368038,1734196246635,-500.0,0.00021095,3]
[345368040,1734196246644,-379.44,0.00021095,3]
[345368041,1734196246653,-500.0,0.00021095,3]
[345368042,1734196246662,-500.0,0.00021095,3]
[345368043,1734196246671,-500.0,0.00021095,3]
[345368044,1734196246681,-500.0,0.00021095,3]
[345368045,1734196246691,-500.0,0.00021095,3]
[345368046,1734196246701,-500.0,0.00021095,3]
[345368047,1734196246710,-500.0,0.00021095,3]
[345368048,1734196246720,-625.60011658,0.00021095,3]
[345368049,1734196246729,-500.0,0.00021095,3]
[345368050,1734196246739,-603.29097056,0.00021095,3]
[345368051,1734196246748,-500.0,0.00021095,3]
[345368052,1734196246758,-500.0,0.00021095,3]
[345368053,1734196246767,-500.0,0.00021095,3]
[345368054,1734196246777,-500.0,0.00021095,3]
[345368055,1734196246786,-500.0,0.00021095,3]
[345368056,1734196246796,-500.0,0.00021095,3]
[345368057,1734196246805,-500.0,0.00021095,3]
[345368058,1734196246814,-500.0,0.00021095,3]
[345368059,1734196246824,-500.0,0.00021095,3]
[345368060,1734196246833,-500.0,0.00021095,3]
[345368061,1734196246843,-500.0,0.00021095,3]
[345368062,1734196246852,-500.0,0.00021095,3]
[345368063,1734196246861,-500.0,0.00021095,3]
[345368064,1734196246871,-500.0,0.00021095,3]
[345368065,1734196246880,-500.0,0.00021095,3]
[345368066,1734196246889,-500.0,0.00021095,3]
[345368067,1734196246899,-500.0,0.00021095,3]
[345368068,1734196246908,-412.24,0.00021095,3]
[345368069,1734196246917,-200.0,0.00021095,2]
[345368070,1734196246926,-500.0,0.00021095,3]
[345368071,1734196246936,-596.39107516,0.00021095,3]
[345368072,1734196246945,-500.0,0.00021095,3]
[345368073,1734196246955,-500.0,0.00021095,3]
[345368074,1734196246964,-500.0,0.00021095,3]
[345368075,1734196246974,-500.0,0.00021095,3]
[345368076,1734196246983,-500.0,0.00021095,3]
[345368077,1734196246993,-500.0,0.00021095,3]
[345368078,1734196247004,-500.0,0.00021095,3]
[345368079,1734196247017,-500.0,0.00021095,3]
[345368080,1734196247026,-500.0,0.00021095,3]
[345368081,1734196247035,-500.0,0.00021095,3]
[345368082,1734196247045,-500.0,0.00021095,3]
[345368083,1734196247056,-12.13168714,0.00021095,3]
[345368084,1734196247070,-487.86831286,0.00021095,3]
[345368085,1734196247079,-487.54374666,0.00021095,3]
[345368086,1734196247092,-12.45625334,0.00021095,3]
[345368087,1734196247101,-500.0,0.00021095,3]
[345368088,1734196247111,-143.11607316,0.00021095,3]
[345368089,1734196247126,-356.88392684,0.00021095,3]
[345368090,1734196247135,-500.0,0.00021095,3]
[345368091,1734196247144,-314.14457117,0.00021095,3]
[345368092,1734196247155,-185.85542883,0.00021095,3]
[345368093,1734196247164,-431.59185214,0.00021095,3]
[345368094,1734196247174,-645.16990156,0.00021095,3]
[345368095,1734196247183,-500.0,0.00021095,3]
[345368096,1734196247192,-500.0,0.00021095,3]
[345368097,1734196247201,-511.56415504,0.00021095,3]
[345368098,1734196247210,-500.0,0.00021095,3]
[345368099,1734196247219,-500.0,0.00021095,3]
[345368100,1734196247228,-500.0,0.00021095,3]
[345368101,1734196247237,-500.0,0.00021095,3]
[345368102,1734196247247,-169.34418698,0.00021095,3]
[345368103,1734196247258,-330.65581302,0.00021095,3]
[345368104,1734196247268,-500.0,0.00021095,3]
[345368105,1734196247278,-500.0,0.00021095,3]
[345368106,1734196247287,-500.0,0.00021095,3]
[345368107,1734196247296,-500.0,0.00021095,3]
[345368108,1734196247306,-500.0,0.00021095,3]
[345368109,1734196247315,-500.0,0.00021095,3]
[345368110,1734196247324,-500.0,0.00021095,3]
[345368111,1734196247334,-500.0,0.00021095,3]
[345368112,1734196247342,-500.69564562,0.00021095,3]
[345368113,1734196247351,-500.0,0.00021095,3]
[345368114,1734196247360,-500.0,0.00021095,3]
[345368115,1734196247369,-500.0,0.00021095,3]
[345368116,1734196247378,-500.0,0.00021095,3]
[345368117,1734196247387,-558.06469887,0.00021095,3]
[345368118,1734196247396,-500.0,0.00021095,3]
[345368119,1734196247405,-500.0,0.00021095,3]
[345368120,1734196247414,-500.0,0.00021095,3]
[345368121,1734196247423,-500.0,0.00021095,3]
[345368122,1734196247432,-495.41856624,0.00021095,3]
[345368123,1734196247442,-500.0,0.00021095,3]
[345368124,1734196247451,-500.0,0.00021095,3]
[345368125,1734196247460,-500.0,0.00021095,3]
[345368126,1734196247470,-500.0,0.00021095,3]
[345368127,1734196247479,-500.0,0.00021095,3]
[345368128,1734196247488,-544.8,0.00021095,3]
[345368129,1734196247497,-500.0,0.00021095,3]
[345368130,1734196247506,-500.0,0.00021095,3]
[345368131,1734196247516,-500.0,0.00021095,3]
[345368132,1734196247525,-500.0,0.00021095,3]
[345368133,1734196247535,-184.04453413,0.00021095,3]
[345368134,1734196247545,-500.0,0.00021095,3]
[345368135,1734196247555,-500.0,0.00021095,3]
[345368136,1734196247564,-500.0,0.00021095,3]
[345368137,1734196247574,-500.0,0.00021095,3]
[345368138,1734196247584,-329.65,0.00021095,3]
[345368139,1734196247595,-500.0,0.00021095,3]
[345368140,1734196247605,-500.0,0.00021095,3]
[345368141,1734196247615,-500.0,0.00021095,3]
[345368142,1734196247625,-500.0,0.00021095,3]
[345368143,1734196247635,-500.0,0.00021095,3]
[345368144,1734196247644,-500.0,0.00021095,3]
[345368145,1734196247654,-506.47833856,0.00021095,3]
[345368146,1734196247663,-500.0,0.00021095,3]
[345368147,1734196247672,-500.0,0.00021095,3]
[345368148,1734196247682,-500.0,0.00021095,3]
[345368149,1734196247691,-500.0,0.00021095,3]
[345368150,1734196247701,-500.0,0.00021095,3]
[345368151,1734196247710,-500.0,0.00021095,3]